Cogmind - Beta 13 @@@ ROGUE MODE // 2024.07.27 @ 00:23:45 Player: Sgt. SmokeWeed Result: Destroyed by S-27 Virus with Autogun Performance ------------- Evolutions (6) 3000 Regions Visited (13) 2600 Robots Destroyed (141) 705 Value Destroyed (5313) 5313 Prototype IDs (33) 660 Alien Tech Used (0) 0 Bonus (348) 348 TOTAL SCORE: 12626 Bonus ------- Follower Combat Kills 48 Aligned with FarCom 300 Cogmind --------- Core Integrity 0/1150 Matter 211/300 Energy 92/100 System Corruption 32% Temperature Cool (0) Movement Core (150) Ox2 Location -4/Factory Parts ------- > --- POWER (3) -------- (None) > --- PROPULSION (4) --- (None) > --- UTILITY (8) ------ Transmission Jammer > --- WEAPON (4) ------- Force Lance > --- INVENTORY (5) ---- Light Nuclear Core Autogun Peak State ------------ > --- POWER ------------ Fission Core Fission Core Fission Core > --- PROPULSION ------- Advanced Treads Medium Treads Medium Treads Improved Medium Treads > --- UTILITY ---------- Improved Cooling System Improved Cooling System Particle Charger Hacking Suite System Shield System Shield > --- WEAPON ----------- Heavy Particle Gun Wave Gun Heavy Particle Cannon Cooled Particle Cannon > --- INVENTORY -------- Light Treads Guided Plasma Cannon Katana [Rating: 70] Favorites ----------- Power Fission Core Engine Light Deuterium Engine Power Core Fission Core Reactor Light Antimatter Reactor Propulsion Light Treads Treads Light Treads Leg Carbon-fiber Leg Wheel Wheel Hover Unit Antigrav System Utility Improved Heat Sink Device Improved Heat Sink Hackware System Shield Protection Improved Propulsion Shielding Weapon Heavy Particle Cannon Energy Gun Particle Gun Energy Cannon Heavy Particle Cannon Ballistic Gun Light Assault Rifle Ballistic Cannon Heavy Flak Cannon Launcher Rocket Launcher Slashing Weapon Katana Piercing Weapon Force Lance Build | -11 -10 -10 -9 -9 -9 -8 -8 -7 -6 -5 -5 -5 -4 ------- Run | Yrd Mat Min Mat Min Exi Min Mat Fac Fac Fac Upp Upp Fac Slots Evolved 12 | . . . 2 . . . 2 2 2 2 . . 2 Power 2 | . . . . . . . . 2 . . . . . Propulsion 2 | . . . . . . . . . 2 . . . . Utility 6 | . . . . . . . 2 . . 2 . . 2 Weapon 2 | . . . 2 . . . . . . . . . . Parts Attached 128 | 5 4 1 6 . 1 9 21 32 12 3 9 . 25 Power 28 | 1 . . 1 . . 1 2 8 6 . 2 . 7 Engine 5 | 1 . . 1 . . . 1 2 . . . . . Core 19 | . . . . . . 1 1 6 3 . 2 . 6 Reactor 4 | . . . . . . . . . 3 . . . 1 Propulsion 25 | 2 . . 2 . . 3 3 6 4 . 3 . 2 Treads 21 | 2 . . 2 . . 3 3 5 4 . 1 . 1 Leg 1 | . . . . . . . . 1 . . . . . Wheel 2 | . . . . . . . . . . . 2 . . Hover 1 | . . . . . . . . . . . . . 1 Flight . | . . . . . . . . . . . . . . Utility 23 | . 1 1 . . . 1 5 7 . 2 1 . 5 Device 19 | . 1 1 . . . 1 4 6 . 1 1 . 4 Storage . | . . . . . . . . . . . . . . Processor . | . . . . . . . . . . . . . . Hackware 3 | . . . . . . . 1 1 . 1 . . . Protection 1 | . . . . . . . . . . . . . 1 Artifact . | . . . . . . . . . . . . . . Weapon 52 | 2 3 . 3 . 1 4 11 11 2 1 3 . 11 Energy Gun 19 | 1 2 . . . . 2 5 5 2 1 . . 1 Energy Cannon 10 | . . . 1 . 1 . 3 3 . . 1 . 1 Ballistic Gun 13 | 1 1 . 2 . . 1 2 . . . . . 6 Ballistic Cannon 4 | . . . . . . . 1 . . . 1 . 2 Launcher 1 | . . . . . . . . 1 . . . . . Special Weapon . | . . . . . . . . . . . . . . Impact Weapon . | . . . . . . . . . . . . . . Slashing Weapon 4 | . . . . . . 1 . 2 . . 1 . . Piercing Weapon 1 | . . . . . . . . . . . . . 1 Special Melee Weapon . | . . . . . . . . . . . . . . Unidentified Prototypes 6 | . . . . . . . 2 3 . . . . 1 Corrupted Parts 4 | . . . . . . . 1 . . . . . 3 System Corruption 24 | . . . . . . . 1 . . . . . 23 Parts Lost 71 | . . 2 . 1 . 9 13 4 2 2 19 3 16 Power 14 | . . 1 . . . 1 1 1 . . 5 . 5 Propulsion 14 | . . . . . . 2 2 1 1 1 4 2 1 Utility 17 | . . . . 1 . . 6 1 . 1 4 1 3 Weapon 26 | . . 1 . . . 6 4 1 1 . 6 . 7 Highest Loss Streak 8 | . . 2 . 1 . 4 7 1 1 2 8 3 6 To Critical Strikes 2 | . . . . . . . . . . . 1 . 1 Average Slot Usage (%) 79 | . 73 86 91 89 88 90 83 89 94 98 38 5 33 Engine 3 | . 14 14 10 11 11 5 5 4 . . . . . Core 10 | . . . . . . 3 2 17 19 17 6 . 7 Treads 15 | . 28 28 20 22 22 21 16 11 21 22 5 . 2 Device 13 | . 2 14 22 12 11 20 21 12 13 16 3 . 7 Hackware 8 | . . . . . . . 7 14 13 17 10 2 . Energy Gun 8 | . 15 28 11 11 11 13 10 8 5 9 2 . 1 Energy Cannon 9 | . . . 7 11 16 6 9 13 13 11 3 . 2 Ballistic Gun 4 | . 12 . 19 22 16 10 1 . . . . . 6 Launcher 1 | . . . . . . . . . 6 1 . . . Slashing Weapon 1 | . . . . . . 8 1 2 . . . . . Naked Turns 29 | . . . . . . . . . . . . 13 16 Heaviest Build 61 | 8 11 12 22 21 30 30 29 46 61 58 55 8 44 Greatest Support 108 | 40 40 40 40 40 40 40 43 42 108 108 86 20 27 Greatest Overweight (x) 7 | . . . . . . . . 2 1 . 7 2 6 Average Overweight (x) . | . . . . . . . . . . . . . 1 Largest Inventory Capacity 5 | 5 5 5 5 5 5 5 5 5 5 5 5 5 5 Average Capacity 5 | 5 5 5 5 5 5 5 5 5 5 5 5 5 5 Most Carried 5 | . 1 1 2 2 3 4 5 5 5 4 4 2 2 Average Carried 2 | . . 1 . 2 2 3 4 3 3 3 2 1 1 Final Capacity 5 | 5 5 5 5 5 5 5 5 5 5 5 5 5 5 Final Carried 5 | . 1 1 2 2 3 2 5 4 4 4 1 2 2 Class Distribution -------------------- 39% | Hacker-Skirmisher 18% | Scavenger-Skirmisher 14% | Mutant 9% | Hacker-Mutant 8% | Gunner 5% | Scavenger-Mutant Dominant Class ---------------- Mutant | -10/Materials Mutant | -10/Mines Gunner | -9/Materials Gunner | -9/Mines Gunner | -9/Exiles Scavenger-Skirmisher | -8/Mines Scavenger-Skirmisher | -8/Materials Hacker-Skirmisher | -7/Factory Hacker-Skirmisher | -6/Factory Hacker-Skirmisher | -5/Factory Hacker-Mutant | -5/Upper Caves Hacker-Mutant | -5/Upper Caves Scavenger-Skirmisher | -4/Factory Resources | -11 -10 -10 -9 -9 -9 -8 -8 -7 -6 -5 -5 -5 -4 ----------- Run | Yrd Mat Min Mat Min Exi Min Mat Fac Fac Fac Upp Upp Fac Matter Collected 1990 | 207 87 63 98 42 . 139 263 324 227 38 69 . 433 Remotely . | . . . . . . . . . . . . . . Salvage Created 5882 | . 334 93 230 116 . 636 969 1125 816 490 390 . 683 Parts 301 | . 15 4 21 3 . 30 56 52 35 26 18 . 41 Haulers Intercepted 3 | . . . . . . . 1 1 1 . . . . Recyclers Shooed 2 | . . . . . . . . . . 2 . . . Parts Field Recycled . | . . . . . . . . . . . . . . Retrieved Matter . | . . . . . . . . . . . . . . Parts Self-Destructed 16 | . . . . . . . . . . . 16 . . Prevented . | . . . . . . . . . . . . . . Kills | -11 -10 -10 -9 -9 -9 -8 -8 -7 -6 -5 -5 -5 -4 ------- Run | Yrd Mat Min Mat Min Exi Min Mat Fac Fac Fac Upp Upp Fac Combat Hostiles Destroyed 110 | . 6 2 5 3 . 14 18 18 12 9 9 . 14 Melee 8 | . . . . . . 3 2 3 . . . . . Guns 43 | . 6 2 4 2 . 9 7 . . 1 5 . 7 Cannons 45 | . . . 1 1 . 2 9 10 10 5 4 . 3 AOE 11 | . . . . . . . . 3 2 3 . . 3 Classes Destroyed 16 | . 3 . 2 . . 4 4 1 . 1 1 . . Worker 9 | . . . . . . 4 1 . 2 1 . . 1 Builder 3 | . . . . . . . 2 . . 1 . . . Tunneler 3 | . . . . . . . 1 1 . . . . 1 Hauler 3 | . . . . . . . 1 1 1 . . . . Recycler 4 | . 1 . . . . . . 1 1 . . . 1 Operator 1 | . . . 1 . . . . . . . . . . Watcher 8 | . 1 . . . . . 3 1 2 1 . . . Swarmer 26 | . . . . . . 3 3 . 4 4 5 . 7 Grunt 48 | . 6 2 3 3 . 8 9 9 5 . 3 . . Brawler 4 | . . . . . . 1 . 1 1 . 1 . . Duelist 2 | . . . . . . 2 . . . . . . . Sentry 11 | . . . 2 . . . 5 2 . 1 . . 1 Specialist 2 | . . . . . . . . . . 2 . . . Hunter 3 | . . . . . . . 1 . . . . . 2 Programmer 14 | . . . . . . . . 6 2 2 . . 4 Samaritan 1 | . . . . . . . . . . . 1 . . Best Kill Streak 8 | . 6 2 3 3 . 5 8 4 8 6 3 . 5 Combat Bots Only 8 | . 2 2 2 3 . 3 6 4 8 4 3 . 4 Max Kills in Single Turn 4 | . 1 1 1 1 . 1 3 2 2 3 1 . 4 Gunslinging . | . . . . . . . . . . . . . . Exploded 3 | . . . . . . . . 2 1 3 . . 3 Melee 1 | . . . . . . 1 1 1 . . . . . Uniques/NPCs Destroyed . | . . . . . . . . . . . . . . Combat | -11 -10 -10 -9 -9 -9 -8 -8 -7 -6 -5 -5 -5 -4 -------- Run | Yrd Mat Min Mat Min Exi Min Mat Fac Fac Fac Upp Upp Fac Hostile Shots Fired 948 | . 38 24 9 13 . 110 137 152 40 22 175 14 214 Missed 286 | . 13 3 4 5 . 32 43 60 10 6 49 6 55 Damage Taken 10491 | . 310 193 61 114 . 1278 1320 1097 572 330 1889 148 3179 Core 2674 | . 54 25 25 . . 276 150 237 54 61 564 71 1157 Absorbed by Shields . | . . . . . . . . . . . . . . Regen/Repaired (Parts) 212 | . . . 212 . . . . . . . . . . Core Remaining (%) 64 | 100 . 68 . . . 24 72 66 93 . . 30 . Volleys Fired 312 | . 26 6 10 7 . 48 48 40 31 17 35 . 44 Largest 4 | . 2 2 4 4 . 3 4 4 3 4 4 . 4 Hottest 301 | . 85 105 176 176 . 153 248 290 234 301 301 . 214 Shots Fired 815 | . 52 11 40 28 . 108 131 126 90 60 67 . 102 Gun 467 | . 52 11 30 21 . 86 78 47 21 26 27 . 68 Cannon 342 | . . . 10 7 . 22 53 79 63 34 40 . 34 Launcher 6 | . . . . . . . . . 6 . . . . Special . | . . . . . . . . . . . . . . Kinetic 201 | . 34 . 20 14 . 43 21 . . . . . 69 Thermal 503 | . 11 6 20 14 . 65 71 92 84 60 67 . 13 Explosive 6 | . . . . . . . . . 6 . . . . Electromagnetic 105 | . 7 5 . . . . 39 34 . . . . 20 Robot Hit Streak 15 | . 14 3 7 6 . 10 15 13 9 8 5 . 8 Robot Miss Streak 8 | . 3 1 4 3 . 3 6 7 4 4 3 . 8 Penetration Max . | . . . . . . . . . . . . . . Secondary Targets 4 | . . 1 . . . 3 . . . . . . . Max Gunslinging Chain 1 | . . 1 . . . 1 . . . . . . . Shots Hit Robots 521 | . 36 8 14 17 . 88 88 86 48 32 38 . 66 Core Hits 290 | . 18 3 9 8 . 36 54 37 32 24 18 . 51 Critical Kills 1 | . . . . . . . . 1 . . . . . Critical Parts Destroyed 1 | . 1 . . . . . . . . . . . . Critical Strikes 12 | . 1 . . . . 3 3 2 . . 2 . 1 Burn 5 | . . . . . . 2 2 1 . . . . . Meltdown 1 | . . . . . . . . 1 . . . . . Destroy 1 | . 1 . . . . . . . . . . . . Corrupt 1 | . . . . . . . 1 . . . . . . Sever 3 | . . . . . . 1 . . . . 2 . . Impale 1 | . . . . . . . . . . . . . 1 Melee Attacks 43 | . . . . . . 10 8 9 . . 7 . 9 Impact . | . . . . . . . . . . . . . . Slashing 34 | . . . . . . 10 8 9 . . 7 . . Piercing 9 | . . . . . . . . . . . . . 9 Sneak Attacks 8 | . . . . . . 3 3 1 . . . . 1 Combat Hostiles . | . . . . . . . . . . . . . . Follow-up Attacks . | . . . . . . . . . . . . . . Damage Inflicted 13978 | . 454 120 255 254 . 1625 2069 2225 1935 1497 1698 . 1846 Guns 4944 | . 453 120 152 171 . 771 902 498 259 353 402 . 863 Cannons 6502 | . . . 103 83 . 450 790 1358 1247 883 1060 . 528 Explosions 1128 | . . . . . . . . 195 408 224 . . 301 Melee 1314 | . . . . . . 401 359 168 . . 232 . 154 Ramming 90 | . 1 . . . . 3 18 6 21 37 4 . . Kinetic 1941 | . 300 . 37 114 . 283 288 . . . . . 919 Thermal 8523 | . 128 95 218 140 . 938 788 1709 1506 1236 1462 . 303 Explosive 408 | . . . . . . . . . 408 . . . . Electromagnetic 1702 | . 25 25 . . . . 616 342 . 224 . . 470 Impact . | . . . . . . . . . . . . . . Slashing 1160 | . . . . . . 401 359 168 . . 232 . . Piercing 154 | . . . . . . . . . . . . . 154 Highest Corruption 32 | . . . . . . 3 1 4 1 . 4 4 32 Average Corruption 5 | . . . . . . 3 1 2 1 . 4 4 17 Corruption Purged . | . . . . . . . . . . . . . . Corruption Blocked . | . . . . . . . . . . . . . . Effects 80 | . . . . . . 10 . 29 9 . 4 . 28 Message Errors 19 | . . . . . . 4 . 6 . . 1 . 8 Matter Fused 20 | . . . . . . 2 . 9 2 . 2 . 5 Heat Flow Errors 12 | . . . . . . 1 . 6 3 . . . 2 Energy Discharges 9 | . . . . . . 1 . 3 1 . . . 4 Parts Rejected 2 | . . . . . . . . 1 . . . . 1 Parts Fused 1 | . . . . . . . . . 1 . . . . Data Loss (minor) 7 | . . . . . . 2 . 2 . . . . 3 Data Loss (major) 2 | . . . . . . . . 1 . . 1 . . Misfires 3 | . . . . . . . . . 1 . . . 2 Alerts 2 | . . . . . . . . . 1 . . . 1 Misdirections 1 | . . . . . . . . . . . . . 1 Weapon Failures 2 | . . . . . . . . 1 . . . . 1 Overload Shots 59 | . . . . . . . . 5 13 17 24 . . Effects 6 | . . . . . . . . 1 1 2 2 . . Energy Bleed 3 | . . . . . . . . 1 1 1 . . . Heat Surge 3 | . . . . . . . . . . 1 2 . . Overflow Damage 478 | . . . . . . 45 . 56 71 103 58 . 145 Projectiles 245 | . . . . . . . . 19 71 97 58 . . Explosions 114 | . . . . . . . . . . 3 . . 111 Melee 119 | . . . . . . 45 . 37 . 3 . . 34 Knockbacks 16 | . . . . . . . 8 . . . . . 8 Impact . | . . . . . . . . . . . . . . Kinetic 16 | . . . . . . . 8 . . . . . 8 Secondary . | . . . . . . . . . . . . . . Self-Inflicted Damage 204 | . . . . . . . . . 47 40 1 . 116 Shots 5 | . . . . . . . . . 1 2 . . 2 Rammed 18 | . 1 . . . . . 5 4 3 3 2 . . Targets Rammed 19 | . 1 . . . . 1 5 4 3 3 2 . . Kicked . | . . . . . . . . . . . . . . Crushed 1 | . . . . . . 1 . . . . . . . Highest Temperature 508 | . 327 72 108 384 . 312 374 508 144 420 470 . 396 Average Temperature 119 | . 97 42 49 172 . 67 108 140 53 91 139 . 196 Received Heat Transfer 3062 | . 198 27 54 69 . 738 711 276 171 9 551 54 204 Effects 22 | . 1 . . 3 . . 3 5 . 2 3 . 5 Shutdowns 13 | . . . . . . . 2 4 . 2 2 . 3 Energy Bleed 1 | . . . . . . . . . . . 1 . . Interference 3 | . . . . 3 . . . . . . . . . Short Circuit 3 | . 1 . . . . . 1 1 . . . . . Damage (minor) 2 | . . . . . . . . . . . . . 2 Siege Activations . | . . . . . . . . . . . . . . Robots Corrupted 1 | . . . . . . . . . . . . . 1 Combat Hostiles 1 | . . . . . . . . . . . . . 1 Parts Fried 9 | . . . . . . . 6 . . . . . 3 Impact Corruptions 1 | . . . . . . . . . . 1 . . . Robots Melted 2 | . . . . . . . . 2 . . . . . Combat Hostiles 2 | . . . . . . . . 2 . . . . . Parts Melted 17 | . . . . 1 . . . 9 4 2 1 . . Heat Transferred 13515 | . 333 222 444 296 . 2213 1813 2422 1991 1412 2060 . 309 Parts Sabotaged . | . . . . . . . . . . . . . . Parts Stolen . | . . . . . . . . . . . . . . Parts Stripped . | . . . . . . . . . . . . . . Power Chain Reactions 3 | . . . . . . . . 2 . 1 . . . Alert | -11 -10 -10 -9 -9 -9 -8 -8 -7 -6 -5 -5 -5 -4 ------- Run | Yrd Mat Min Mat Min Exi Min Mat Fac Fac Fac Upp Upp Fac Peak Influence 320 | . 177 119 215 77 . 145 239 170 320 238 . . 220 Initial 77 | . . 69 38 17 . . 21 74 77 8 . . . Average 76 | . 71 78 63 72 . 67 84 80 98 38 . . 79 Maximum Alert Level 1 | . . . 1 . . . 1 . 1 1 . . 1 Low Security (%) 95 | 100 100 100 94 100 . 100 97 100 87 96 . . 88 Level 1 4 | . . . 5 . . . 2 . 12 3 . . 11 Level 2 . | . . . . . . . . . . . . . . Level 3 . | . . . . . . . . . . . . . . Level 4 . | . . . . . . . . . . . . . . Level 5 . | . . . . . . . . . . . . . . High Security . | . . . . . . . . . . . . . . Max Security . | . . . . . . . . . . . . . . Squads Dispatched 25 | . 1 . 2 . . . 7 6 4 2 . . 3 Investigation 4 | . . . 1 . . . 2 1 . . . . . Extermination 11 | . . . . . . . . 5 3 1 . . 2 Reinforcement 7 | . 1 . 1 . . . 2 . 1 1 . . 1 Assault . | . . . . . . . . . . . . . . Garrison 3 | . . . . . . . 3 . . . . . . Intercept . | . . . . . . . . . . . . . . Searches Triggered . | . . . . . . . . . . . . . . Construction Impeded 1 | . . . . . . . 1 . . . . . . Haulers Reinforced 1 | . . . . . . . . . 1 . . . . Active Scanning Responses . | . . . . . . . . . . . . . . Cargo Convoy Interrupts 1 | . . . . . . . . . . . . . 1 Stealth | -11 -10 -10 -9 -9 -9 -8 -8 -7 -6 -5 -5 -5 -4 --------- Run | Yrd Mat Min Mat Min Exi Min Mat Fac Fac Fac Upp Upp Fac Distress Signals 5 | . 2 . . . . . 2 . . . . . 1 Communications Jammed 1 | . . . . . . . . . . . . . 1 Distress Signals 1 | . . . . . . . . . . . . . 1 Times Spotted 158 | . 9 5 7 2 . 15 25 24 17 12 10 5 27 Peak Tracking Total 10 | . 4 3 2 2 . 3 5 5 4 3 5 5 10 Tactical Retreats 8 | . . . . . . 2 2 . . . 1 . 3 Traps | -11 -10 -10 -9 -9 -9 -8 -8 -7 -6 -5 -5 -5 -4 ------- Run | Yrd Mat Min Mat Min Exi Min Mat Fac Fac Fac Upp Upp Fac Traps Triggered 5 | . . . . . . . 2 3 . . . . . Indirectly . | . . . . . . . . . . . . . . Trap Hack Attempts . | . . . . . . . . . . . . . . Triggered . | . . . . . . . . . . . . . . Disarmed 6 | . . . . . . . . . 6 . . . . Reprogrammed . | . . . . . . . . . . . . . . Reused . | . . . . . . . . . . . . . . Traps Extracted . | . . . . . . . . . . . . . . Installed . | . . . . . . . . . . . . . . Triggered 1 | . . . . . . . . . . . . . 1 Machines | -11 -10 -10 -9 -9 -9 -8 -8 -7 -6 -5 -5 -5 -4 ---------- Run | Yrd Mat Min Mat Min Exi Min Mat Fac Fac Fac Upp Upp Fac Machines Disabled 17 | . . . 2 . . 2 . 1 2 5 . . 5 Max in Single Turn 4 | . . . 2 . . 1 . 1 1 2 . . 4 Garrison Access 1 | . . . . . . . . . . 1 . . . Machines Repaired . | . . . . . . . . . . . . . . Machines Dismantled . | . . . . . . . . . . . . . . Machines Sabotaged . | . . . . . . . . . . . . . . Overloaded Fab Kills . | . . . . . . . . . . . . . . Hacking | -11 -10 -10 -9 -9 -9 -8 -8 -7 -6 -5 -5 -5 -4 --------- Run | Yrd Mat Min Mat Min Exi Min Mat Fac Fac Fac Upp Upp Fac Machines Accessed 19 | . . . 1 . 1 . 3 4 4 5 . . 1 Terminals 12 | . . . . . . . 2 3 3 3 . . 1 Fabricators 1 | . . . . . . . . . . 1 . . . Repair Stations 1 | . . . 1 . . . . . . . . . . Recycling Units 1 | . . . . . . . 1 . . . . . . Scanalyzers . | . . . . . . . . . . . . . . Garrison Access 3 | . . . . . . . . 1 1 1 . . . Total Hacks 45 | . . . 4 . 1 . 8 8 13 9 . . 2 Successful 21 | . . . 4 . 1 . 2 3 7 3 . . 1 Failed 24 | . . . . . . . 6 5 6 6 . . 1 Catastrophic 4 | . . . . . . . 1 1 2 . . . . Database Lockouts . | . . . . . . . . . . . . . . Manual 16 | . . . . . 1 . 7 2 2 4 . . . Terminals 32 | . . . . . . . 7 6 12 5 . . 2 Fabricators 2 | . . . . . . . . . . 2 . . . Repair Stations 4 | . . . 4 . . . . . . . . . . Recycling Units 1 | . . . . . . . 1 . . . . . . Scanalyzers . | . . . . . . . . . . . . . . Garrison Access 5 | . . . . . . . . 2 1 2 . . . Terminal Hacks 14 | . . . . . 1 . 1 3 7 1 . . 1 Record 3 | . . . . . . . . 1 2 . . . . Prototype ID Bank 2 | . . . . . . . . 1 1 . . . . Open DSF 1 | . . . . . . . . . . 1 . . . Level Access Points 2 | . . . . . . . 1 . 1 . . . . Emergency Access Points 2 | . . . . . . . . 1 1 . . . . Locate Traps 1 | . . . . . . . . . 1 . . . . Disarm Traps 1 | . . . . . . . . . 1 . . . . Hauler Manifests 1 | . . . . . . . . . . . . . 1 Derelict Proto ID Bank 1 | . . . . . 1 . . . . . . . . Fabricator Hacks 1 | . . . . . . . . . . 1 . . . Network Status 1 | . . . . . . . . . . 1 . . . Repair Station Hacks 4 | . . . 4 . . . . . . . . . . Scan Component 2 | . . . 2 . . . . . . . . . . Repair 2 | . . . 2 . . . . . . . . . . Recycling Unit Hacks 1 | . . . . . . . 1 . . . . . . Report Inventory 1 | . . . . . . . 1 . . . . . . Scanalyzer . | . . . . . . . . . . . . . . Garrison Access Hacks 1 | . . . . . . . . . . 1 . . . Seal Access 1 | . . . . . . . . . . 1 . . . Unauthorized Hacks . | . . . . . . . . . . . . . . Terminals . | . . . . . . . . . . . . . . Fabricators . | . . . . . . . . . . . . . . Repair Stations . | . . . . . . . . . . . . . . Recycling Units . | . . . . . . . . . . . . . . Scanalyzers . | . . . . . . . . . . . . . . Garrison Access . | . . . . . . . . . . . . . . Data Cores Recovered . | . . . . . . . . . . . . . . Used . | . . . . . . . . . . . . . . Hacking Detections 10 | . . . 1 . . . 2 3 2 2 . . . Full Trace Events 1 | . . . 1 . . . . . . . . . . Feedback Events . | . . . . . . . . . . . . . . Feedback Blocked . | . . . . . . . . . . . . . . Robot Schematics Acquired . | . . . . . . . . . . . . . . Robots Built . | . . . . . . . . . . . . . . Authchips . | . . . . . . . . . . . . . . Time . | . . . . . . . . . . . . . . Total Robot Build Rating . | . . . . . . . . . . . . . . Part Schematics Acquired . | . . . . . . . . . . . . . . Parts Built . | . . . . . . . . . . . . . . Authchips . | . . . . . . . . . . . . . . Time . | . . . . . . . . . . . . . . Total Part Build Rating . | . . . . . . . . . . . . . . Parts Repaired 2 | . . . 2 . . . . . . . . . . Time 52 | . . . 52 . . . . . . . . . . Parts Recycled . | . . . . . . . . . . . . . . Recycled Matter . | . . . . . . . . . . . . . . Retrieved Matter . | . . . . . . . . . . . . . . Retrieved Components . | . . . . . . . . . . . . . . Parts Scanalyzed . | . . . . . . . . . . . . . . Part Schematics Acquired . | . . . . . . . . . . . . . . Parts Damaged . | . . . . . . . . . . . . . . Bothacking | -11 -10 -10 -9 -9 -9 -8 -8 -7 -6 -5 -5 -5 -4 ------------ Run | Yrd Mat Min Mat Min Exi Min Mat Fac Fac Fac Upp Upp Fac Used RIF Installer . | . . . . . . . . . . . . . . Robots Hacked . | . . . . . . . . . . . . . . Non-combat . | . . . . . . . . . . . . . . Combat . | . . . . . . . . . . . . . . Robot Hacks Applied . | . . . . . . . . . . . . . . Relay Couplers Released . | . . . . . . . . . . . . . . Fabnet Peak Effective % . | . . . . . . . . . . . . . . Robots Rewired 1 | . . . . . . . . . . 1 . . . Allies Hacked . | . . . . . . . . . . . . . . Hacks Repelled . | . . . . . . . . . . . . . . Allies | -11 -10 -10 -9 -9 -9 -8 -8 -7 -6 -5 -5 -5 -4 -------- Run | Yrd Mat Min Mat Min Exi Min Mat Fac Fac Fac Upp Upp Fac Total Allies 1 | . . . . . . . . . . 1 . . . Largest Group 1 | . . . . . . . . . . 1 . . . Highest-Rated Group 49 | . . . . . . . . . . 49 . . . Highest-Rated Ally 49 | . . . . . . . . . . 49 . . . Total Orders . | . . . . . . . . . . . . . . Ally Attacks 4 | . . . . . . . . . . 4 . . . Total Damage 141 | . . . . . . . . . . 141 . . . Kills 1 | . . . . . . . . . . 1 . . . Allies Corrupted 1 | . . . . . . . . . . 1 . . . Allies Melted . | . . . . . . . . . . . . . . Intel | -11 -10 -10 -9 -9 -9 -8 -8 -7 -6 -5 -5 -5 -4 ------- Run | Yrd Mat Min Mat Min Exi Min Mat Fac Fac Fac Upp Upp Fac Robot Analysis Total . | . . . . . . . . . . . . . . Derelict Logs Recovered . | . . . . . . . . . . . . . . Drone Launches . | . . . . . . . . . . . . . . Drone Recoveries . | . . . . . . . . . . . . . . Exploration | -11 -10 -10 -9 -9 -9 -8 -8 -7 -6 -5 -5 -5 -4 ------------- Run | Yrd Mat Min Mat Min Exi Min Mat Fac Fac Fac Upp Upp Fac Turns Passed 10270 | 61 341 155 428 142 368 1019 1081 2209 1551 1007 691 22 1195 Spaces Moved 5005 | 39 161 86 210 76 229 516 530 899 708 589 439 36 487 Core 320 | 7 . . . . . . . . . . 122 30 161 Treads 4419 | 32 161 86 210 76 229 516 530 899 708 589 192 . 191 Legs . | . . . . . . . . . . . . . . Wheels 131 | . . . . . . . . . . . 125 6 . Hover 135 | . . . . . . . . . . . . . 135 Flight . | . . . . . . . . . . . . . . Fastest Speed 50 | 50 160 160 160 160 160 160 160 152 155 156 50 50 50 Average Speed 172 | 140 160 160 160 160 160 164 160 218 171 156 127 60 206 Slowest Speed 400 | 160 160 160 160 160 160 170 160 320 232 160 400 150 350 Overloaded Moves . | . . . . . . . . . . . . . . Propulsion Burnouts . | . . . . . . . . . . . . . . Robots Hopped . | . . . . . . . . . . . . . . Cave-ins Triggered . | . . . . . . . . . . . . . . Exploration Rate (%) 29 | 3 36 20 23 13 59 82 31 27 21 14 60 10 11 Regions Visited 13 Branch Regions 6 Pre-discovered Areas . | . . . . . . . . . . . . . . Known Exits Taken 2 | . . . . . . . 1 . 1 . . . . Unknown Exits Taken 11 | 1 1 1 1 1 1 1 . 1 . 1 1 1 . Scrap Searched 3 | . . 1 . . . 1 . . . . 1 . . Spaces Dug 1 | . . . . . . . . . 1 . . . . Terrain Destroyed 73 | . . . . . . . . 5 41 11 12 . 4 Melee . | . . . . . . . . . . . . . . Projectile 33 | . . . . . . . . 3 7 7 12 . 4 AOE 40 | . . . . . . . . 2 34 4 . . . Terrain Rammed . | . . . . . . . . . . . . . . Walls Destroyed . | . . . . . . . . . . . . . . Machines Disabled . | . . . . . . . . . . . . . . Actions | -11 -10 -10 -9 -9 -9 -8 -8 -7 -6 -5 -5 -5 -4 --------- Run | Yrd Mat Min Mat Min Exi Min Mat Fac Fac Fac Upp Upp Fac Total 5908 | 43 194 92 279 82 230 584 648 1036 976 636 501 36 571 Wait 350 | . . . 52 . . . 24 33 214 15 9 . 3 Move 4992 | 38 160 85 209 75 228 515 529 898 707 588 438 35 487 Hop . | . . . . . . . . . . . . . . Pick Up 14 | . 1 . 2 . 1 . 3 4 1 2 . . . Fast Attach 88 | 5 3 1 5 . . 5 17 19 6 2 6 . 19 Attach 17 | . . . 1 . . 3 1 4 1 1 3 . 3 Detach 5 | . . . . . . 1 2 . . . . 1 1 Swap 23 | . 1 . . . 1 1 3 9 5 . . . 3 Drop 39 | . 2 . . . . . 8 16 8 2 1 . 2 Fire 312 | . 26 6 10 7 . 48 48 40 31 17 35 . 44 Melee 43 | . . . . . . 10 8 9 . . 7 . 9 Ram 2 | . . . . . . . . . . . 2 . . Kick . | . . . . . . . . . . . . . . Crush 17 | . 1 . . . . 1 5 4 3 3 . . . Escape Stasis . | . . . . . . . . . . . . . . Rewire 6 | . . . . . . . . . . 6 . . . Trap . | . . . . . . . . . . . . . . Miscellaneous . | . . . . . . . . . . . . . . Route ------- -11/Scrapyard -10/Materials (discovered 2 exits: *Mat / [*Min]) -10/Mines -9/Materials -9/Mines -9/Exiles -8/Mines -8/Materials (discovered 3 exits: *Fac x3) -7/Factory -6/Factory (discovered 4 exits: *Fac x4) -5/Factory -5/Upper Caves -5/Upper Caves -4/Factory History --------- Turn | Location | Event 19 | -11/Scrapyard | Discovered new exit (range 16) 62 | -11/Scrapyard | Entered Materials 184 | -10/Materials | Discovered new exit (range 10) 317 | -10/Materials | Build established: Mutant 349 | -10/Materials | Discovered new exit (range 13) 403 | -10/Materials | Entered Mines 515 | -10/Mines | Discovered new exit (range 9) 558 | -10/Mines | Entered Materials 558 | -9/Materials | Evolved 2 slots: Weapon x2 798 | -9/Materials | Repaired Lgt. Treads 825 | -9/Materials | Repaired Lgt. Treads 884 | -9/Materials | Build established: Gunner 969 | -9/Materials | Discovered new exit (range 9) 986 | -9/Materials | Entered Mines 1120 | -9/Mines | Deemed a non-threat by the Exiles lab entrance 1122 | -9/Mines | Discovered new exit (range 5) 1128 | -9/Mines | Entered Exiles 1167 | -9/Exiles | Met 8R-AWN 1196 | -9/Exiles | Met EX-HEX 1242 | -9/Exiles | Met EX-BIN 1274 | -9/Exiles | Aligned with FarCom system 1276 | -9/Exiles | Given EX-Vault access code 1312 | -9/Exiles | Opened EX-Vault 1325 | -9/Exiles | Found Gui. Plasma Cannon 1361 | -9/Exiles | Warned to stay clear of 0b10 Research branches 1421 | -9/Exiles | Met EX-DEC 1475 | -9/Exiles | Discovered new exit (range 14) 1496 | -9/Exiles | Left Exiles lab with Gui. Plasma Cannon 1496 | -9/Exiles | Entered Mines 2011 | -8/Mines | Core integrity fell below 50% 2036 | -8/Mines | Lost 3 parts (1p1n1w) 2314 | -8/Mines | Build established: Scavenger-Skirmisher 2494 | -8/Mines | Discovered new exit (range 7) 2512 | -8/Mines | Lost 4 parts (1n3w) 2515 | -8/Mines | Entered Materials 2515 | -8/Materials | Evolved 2 slots: Utility x2 2659 | -8/Materials | Lost 3 parts (1n2u) 3084 | -8/Materials | Identified exit to Factory 3287 | -8/Materials | Garrison activated, responded to threat 3523 | -8/Materials | Lost 7 parts (1p1n2u3w) 3596 | -8/Materials | Entered Factory 3596 | -7/Factory | Evolved 2 slots: Power x2 3981 | -7/Factory | Build established: Hacker-Mutant 4585 | -7/Factory | Build established: Hacker-Skirmisher 5786 | -7/Factory | Discovered new exit (range 9) 5805 | -7/Factory | Entered another Factory area 5805 | -6/Factory | Evolved 2 slots: Propulsion x2 6050 | -6/Factory | Destroyed 8 combat bots 6892 | -6/Factory | Identified exit to Factory 7356 | -6/Factory | Entered another Factory area 7356 | -5/Factory | Evolved 2 slots: Utility x2 7546 | -5/Factory | Identified exit to DSF 8339 | -5/Factory | Discovered new exit (range 15) 8363 | -5/Factory | Entered Upper Caves 8488 | -5/Upper Caves | Lost 3 parts (1n2w) 8607 | -5/Upper Caves | Lost 8 parts (3p1n2u2w) 8676 | -5/Upper Caves | Spotted B-75 Beast 8728 | -5/Upper Caves | Build established: Hacker-Mutant 8820 | -5/Upper Caves | Core integrity fell below 50% 8857 | -5/Upper Caves | Lost 6 parts (1p2n1u2w) 9051 | -5/Upper Caves | Discovered new exit (range 4) 9054 | -5/Upper Caves | Entered another Upper Caves area 9069 | -5/Upper Caves | Discovered new exit (range 15) 9076 | -5/Upper Caves | Entered Factory 9076 | -4/Factory | Evolved 2 slots: Utility x2 9094 | -4/Factory | Lost 3 parts (2n1u) 9158 | -4/Factory | Build established: Mutant 9768 | -4/Factory | System corruption reached 10% 9879 | -4/Factory | Build established: Scavenger-Skirmisher 9963 | -4/Factory | System corruption reached 30% 9985 | -4/Factory | Core integrity fell below 50% 10013 | -4/Factory | Lost 5 parts (2p1u2w) 10229 | -4/Factory | Cargo convoy interrupted 10266 | -4/Factory | Core integrity fell below 20% 10271 | -4/Factory | Destroyed by S-27 Virus with Autogun Last Messages --------------- Fusion Modulator explodes. Destroyed Lgt. Ion Engine. Imp. Terrain Scanner fried. T-07 Excavator destroyed. Neutrino Reactor explodes. Arm. Medium Treads destroyed. Destroyed Arm. Medium Treads. Neutrino Reactor explodes. Door malfunctions. S-27 Virus destroyed. U-05 Engineer repairs door. U-05 Engineer lays Concrete. Imp. Heat Sink destroyed. Mic. Fission Core destroyed. U-05 Engineer lays Concrete. Lgt. Fission Core destroyed. U-05 Engineer lays Concrete. G-67 Veteran suffers critical hit (Impale). Destroyed Adv. Heat Sink. U-05 Engineer lays Concrete. Map ----- +----------------------------------------------------+ | ?????????????????????????????????????????????????? | | ?????????????????????????????????????????????????? | | ?????????????????????????????????????????????????? | | ?????????????????????????????????????????????????? | | ?????????????????????????????????????????????????? | | ?????????????????????????????????????????????????? | | ?????????????????????????????????????????????????? | | ???????????????????????? ????????????????????? | | ???????????????????????# #???????????????????? | | ???????????????????????# #???????????????????? | | ???????????????????????# #???????????????????? | | ???????????????????????# #???????????????????? | | ???????????????????????# #???????????????????? | | ???????????????????????# #???????????????????? | | ???????????????????????# #???????????????????? | | ???????????????????????# #??##?????????####### | | ???????????????????????# #? ??????????# """" | | ???????????????????????# # ???????????# ""T" | | ???????????????????????# # ????????????# | | ???????????????????????+ +?????????????# | | ???????????????????????# #?????????????# | | ???????????????????????# #?????????????# | | ???????????????????????# =[ #?????????????# | | ????????????????????######/###################+### | | ????????????????????# * g u s + | | ????????????????????# @ s w ########### | | ????????????????????# [gg #?????????# T | | ????????????????????# u #?????????# | | ????????????????????# % u#?????????# | | ????????????????????# #?????????# | | ????????????????????# #?????????# """ | | ????????????????????# #?????????# """ | | ????????????????????# #?????????# """ | | ????????????????????# #?????????# | | ????????????????????# #????###### ! | | ????????????????????# #????# ####### | | ????????????????????##############????### ### | | ??????????????????????????????????????## | | ??????????????????????????????????????# | | ??????????????????????????????????????## | | ??????????????????????????????????????# | | ??????????????????????????????????????# | | ??????????????????????????????????????# | | ??????????????????????????????????????## = | | ??????????????????????????????????????### | | ????????????????????????????????????????########## | | ?????????????????????????????????????????????????? | | ?????????????????????????????????????????????????? | | ?????????????????????????????????????????????????? | | ???????????????????????????????????????????????### | +----------------------------------------------------+ Best States ------------- Heat Dissipation 94 Energy Generation 44 Energy Capacity 730 Matter Stores 300 Matter Capacity 300 Sight Range 16 Terrain Scan Density 10 Jamming Range 12 Evasion (%) 50 Recoil Reduction 4 Particle Charging 15 Offensive Hacking 10 Defensive Hacking 20 Item Schematics ----------------- None Robot Schematics ------------------ None Fabricated ------------ Nothing Alien Tech Used ----------------- None Achievements -------------- None Challenges ------------ None Game ------ Seed MasterCoolingAutobeam Manual? 0 Play Time 00:59:44 Cumulative 47.7 hours Start 2024.07.26 @ 23:24:46 End 2024.07.27 @ 00:23:45 Sessions 1 Manual Loads 0 Difficulty Rogue Special Mode None Game No. 105 Rogue 35 Adventurer 70 Explorer 0 Win Type - Total 0 Types 0/0/0/0/0/0/0/0/0 Lore% 34 Gallery% 36 Achievement% 30 Wizard Run 0 Options --------- Layout 0 ASCII 0 Keyboard 0 Movement Mouse Keybinds 0 Fullscreen 1 Font 24/Smallcaps Map View 76x50 Zoom Use 0% Tactical HUD 0 Map Filters NONE Filters NONE Steam 1 RUN: 7caaf0bd-d70e-446f-8431-b3143cbfa8f0